bitfinex-derivatives/quotes_BTCF0:USTF0_20210708
["timestamp","ask_amount","ask_price","bid_price","bid_amount"]
[1625732743047,2.58464591,32403.0,32402.0,0.24421446]
[1625732743424,1.58464591,32403.0,32402.0,0.24421446]
[1625732743577,2.58464591,32403.0,32402.0,0.24421446]
[1625732743725,2.58464591,32403.0,32402.0,0.00363902]
[1625732743875,3.84983213,32403.0,32402.0,0.00363902]
[1625732744026,3.90683213,32403.0,32402.0,0.00363902]
[1625732744172,2.64164591,32403.0,32399.0,0.00363907]
[1625732744323,1.08471525,32402.0,32399.0,0.00363907]
[1625732744474,1.08471525,32402.0,32398.0,0.24057544]
[1625732744622,1.58471525,32402.0,32400.0,0.003639]
[1625732744922,1.08471525,32402.0,32399.0,0.003639]
[1625732745074,0.057,32401.0,32399.0,0.003639]
[1625732745526,0.24057544,32400.0,32399.0,0.003639]
[1625732745674,0.57106544,32400.0,32399.0,0.003639]
[1625732746802,0.57106544,32400.0,32399.0,0.103639]
[1625732748228,1.57106544,32400.0,32399.0,0.103639]
[1625732748377,0.57106544,32400.0,32399.0,0.103639]
[1625732755661,1.57106544,32400.0,32399.0,0.103639]
[1625732756336,0.57106544,32400.0,32399.0,0.103639]
[1625732756485,0.57106544,32400.0,32399.0,0.003639]
[1625732756637,1.57106544,32400.0,32399.0,0.003639]
[1625732756937,0.57106544,32400.0,32399.0,0.103639]
[1625732757463,0.57106544,32400.0,32399.0,0.1]
[1625732757763,0.57106544,32400.0,32399.0,0.10363899]
[1625732763844,0.24057544,32400.0,32399.0,0.10363899]
[1625732763995,0.24057544,32400.0,32399.0,0.57527903]
[1625732764295,0.24057544,32402.0,32399.0,0.57527903]
[1625732764445,0.24057544,32402.0,32400.0,3.9182]
[1625732764595,0.057,32401.0,32400.0,3.9182]
[1625732764897,0.057,32401.0,32400.0,3.920951]
[1625732765048,0.057,32401.0,32400.0,4.02458986]
[1625732766548,0.057,32401.0,32400.0,4.0336866]
[1625732768201,0.24057544,32402.0,32400.0,4.0336866]
[1625732768649,0.24057544,32402.0,32401.0,0.01273508]
[1625732769100,0.24057544,32402.0,32401.0,0.57532208]
[1625732779765,0.24057544,32402.0,32401.0,0.57532286]
[1625732779914,0.79757544,32402.0,32401.0,0.10363937]
[1625732780065,3.60857048,32402.0,32374.0,0.2929]
[1625732780214,1.81104775,32399.0,32384.0,0.9503]
[1625732780365,0.057,32398.0,32384.0,0.96849932]
[1625732780515,5.396,32396.0,32385.0,0.01819916]
[1625732780815,0.057,32395.0,32386.0,0.00910105]
[1625732780965,1.0,32394.0,32386.0,0.00910105]
[1625732781115,1.057,32394.0,32387.0,0.47693253]
[1625732781265,1.557,32394.0,32388.0,0.00910114]
[1625732781415,1.557,32394.0,32387.0,0.47693253]
[1625732781565,1.0,32389.0,32387.0,0.01273953]
[1625732781717,0.48115088,32388.0,32385.0,0.2587746]
[1625732781865,0.53815088,32388.0,32386.0,0.0091017]
[1625732782015,0.53815088,32388.0,32386.0,0.4728767]
[1625732782165,0.53815088,32388.0,32387.0,0.01274101]
[1625732782466,0.53815088,32388.0,32387.0,0.47292401]
[1625732782616,1.53815088,32388.0,32387.0,0.47292401]
[1625732782915,0.53815088,32388.0,32387.0,0.47292401]
[1625732783901,0.53815088,32388.0,32387.0,0.460183]
[1625732784198,0.53815088,32388.0,32387.0,0.47292457]
[1625732784356,0.53815088,32388.0,32387.0,0.01274157]
[1625732784493,0.53815088,32388.0,32387.0,0.47744657]
[1625732785247,0.53815088,32388.0,32387.0,0.57744657]
[1625732785999,4.91605088,32388.0,32387.0,0.57744657]
[1625732787574,5.91605088,32388.0,32387.0,0.57744657]
[1625732787876,5.91605088,32388.0,32387.0,0.56834545]
[1625732788334,6.41605088,32388.0,32387.0,0.10364045]
[1625732789230,5.91605088,32388.0,32387.0,0.10364045]
[1625732789454,6.64125355,32388.0,32387.0,0.10364045]
[1625732789754,5.91605088,32388.0,32387.0,0.10364045]
[1625732790117,8.9982551,32388.0,32372.0,0.24057544]
[1625732790237,0.72544526,32378.0,32372.0,0.24057544]
[1625732790389,0.057,32377.0,32372.0,0.24057544]
[1625732790505,0.057,32377.0,32373.0,0.00364191]
[1625732790660,3.8021,32365.0,32360.0,0.81886948]
[1625732790806,4.12525,32365.0,32360.0,0.81886948]
[1625732790955,4.12525,32365.0,32361.0,0.00910692]
[1625732791105,4.12525,32365.0,32361.0,0.02185459]
[1625732791407,0.057,32364.0,32362.0,0.47219724]
[1625732791557,0.057,32364.0,32363.0,0.00910776]
[1625732791732,0.77872632,32364.0,32363.0,0.00910776]
[1625732791856,0.77872632,32364.0,32363.0,0.01275027]
[1625732792009,0.77872632,32364.0,32363.0,0.47417827]
[1625732792317,0.77872632,32364.0,32363.0,0.46507051]
[1625732792482,0.77872632,32364.0,32363.0,0.47417792]
[1625732792641,0.72172632,32364.0,32363.0,0.47417792]
[1625732793588,0.72172632,32364.0,32363.0,0.57417792]
[1625732793739,0.72172632,32364.0,32363.0,0.81475336]
[1625732795541,0.72172632,32364.0,32363.0,0.81111085]
[1625732795691,0.72172632,32364.0,32363.0,0.81475299]
[1625732796741,0.72172632,32364.0,32363.0,0.81475302]
[1625732796892,0.72172632,32364.0,32363.0,0.81111085]
[1625732797043,0.72172632,32364.0,32363.0,0.81475303]
[1625732798845,0.72172632,32364.0,32363.0,0.57417759]
[1625732798996,0.77872632,32364.0,32363.0,0.56507018]
[1625732800797,4.93362632,32364.0,32363.0,0.56507018]
[1625732802451,5.93362632,32364.0,32363.0,0.56507018]
[1625732802748,4.93362632,32364.0,32363.0,0.56507018]
[1625732802898,5.93362632,32364.0,32363.0,0.56507018]
[1625732803049,4.93362632,32364.0,32363.0,0.56507018]
[1625732804850,0.77872632,32364.0,32363.0,0.56507018]
[1625732808302,0.24057544,32373.0,32363.0,0.56507018]
[1625732808456,0.24057544,32373.0,32363.0,0.88975018]
[1625732808684,0.9153,32378.0,32363.0,0.78975018]
[1625732808831,0.9153,32378.0,32364.0,0.00364207]
[1625732809277,0.53990138,32383.0,32377.0,0.1]
[1625732809579,0.53978808,32385.0,32366.0,0.057]
[1625732809728,0.85858808,32385.0,32355.0,0.3861]
[1625732809879,0.24057544,32380.0,32379.0,0.24057544]
[1625732810256,0.24057544,32380.0,32379.0,0.34421738]
[1625732811231,0.24057544,32380.0,32379.0,0.34057544]
[1625732811530,0.24057544,32380.0,32379.0,0.34421756]
[1625732811679,0.24057544,32380.0,32379.0,0.80751556]
[1625732813331,0.24057544,32383.0,32379.0,0.80751556]
[1625732813630,0.24057544,32383.0,32380.0,0.00364215]
[1625732813781,0.24057544,32383.0,32382.0,0.24057544]
[1625732814082,0.78036289,32383.0,32382.0,0.24057544]
[1625732814231,0.78036289,32383.0,32382.0,0.34421759]
[1625732814530,1.50006682,32383.0,32382.0,0.34421759]
[1625732814681,0.78036289,32383.0,32382.0,0.34421759]
[1625732815357,1.50005039,32383.0,32382.0,0.34057544]
[1625732815881,1.50005039,32383.0,32382.0,0.34421767]
[1625732816708,2.50005039,32383.0,32382.0,0.34421767]
[1625732816857,3.5796036,32383.0,32382.0,0.34421767]
[1625732817833,4.83904051,32383.0,32382.0,0.34421767]
[1625732817984,5.33904051,32383.0,32379.0,0.24057544]
[1625732818283,1.25951571,32382.0,32380.0,0.00364246]
[1625732818435,1.75951571,32382.0,32380.0,0.00364246]
[1625732818584,2.33920395,32381.0,32380.0,0.00364246]
[1625732819409,2.66126395,32381.0,32380.0,0.00364246]
[1625732819561,3.16126395,32381.0,32376.0,0.24057544]
[1625732819710,0.53987416,32378.0,32376.0,0.24057544]
[1625732819860,0.48115088,32377.0,32376.0,0.24057544]
[1625732820161,0.48115088,32377.0,32376.0,0.70795296]
[1625732821137,1.48115088,32377.0,32376.0,0.70795296]
[1625732821888,0.48115088,32377.0,32376.0,0.70795296]
[1625732822189,1.48115088,32377.0,32376.0,0.70795296]
[1625732823164,0.48115088,32377.0,32376.0,0.70795296]
[1625732823391,1.48115088,32377.0,32376.0,0.70795296]
[1625732825040,0.48115088,32377.0,32376.0,0.00364252]
[1625732825190,1.02112938,32377.0,32376.0,0.00364252]
[1625732825341,2.02112938,32377.0,32376.0,0.00364252]
[1625732825492,3.32091313,32377.0,32370.0,0.01274906]
[1625732825642,0.36006457,32375.0,32370.0,0.01274906]
[1625732825944,0.48115088,32371.0,32370.0,0.01274906]
[1625732826093,5.29824088,32371.0,32370.0,0.01274906]
[1625732826241,6.29824088,32371.0,32370.0,0.01274906]
[1625732826391,6.29824088,32371.0,32364.0,0.01274948]
[1625732826541,6.29824088,32371.0,32370.0,0.01274965]
[1625732826842,5.29824088,32371.0,32370.0,0.1]
[1625732827144,5.29824088,32371.0,32370.0,0.11274953]
[1625732827667,6.29824088,32371.0,32370.0,0.11274953]
[1625732827968,6.29824088,32371.0,32370.0,0.00364272]
[1625732828419,6.29824088,32371.0,32364.0,0.01274983]
[1625732829168,6.29824088,32371.0,32365.0,0.464038]
[1625732829468,6.29824088,32371.0,32366.0,0.01274983]
[1625732829619,1.0,32369.0,32366.0,0.01274983]
[1625732829920,0.24057544,32367.0,32366.0,0.01274983]
[1625732830070,0.24057544,32367.0,32365.0,0.01274983]
[1625732830371,0.24057544,32367.0,32366.0,0.01274993]
[1625732830521,0.24057544,32367.0,32366.0,0.11274993]
[1625732834950,0.24057544,32367.0,32366.0,0.10910709]
[1625732837051,0.24057544,32367.0,32366.0,0.56981209]
[1625732840431,0.24057544,32367.0,32366.0,0.10910709]
[1625732842989,0.74057544,32367.0,32356.0,0.057]
[1625732843142,3.09433296,32367.0,32351.0,1.0093]
[1625732843483,4.09433296,32367.0,32351.0,0.798113]
[1625732843491,0.905589,32357.0,32352.0,0.01275343]
[1625732843617,4.6057,32353.0,32352.0,0.01275343]
[1625732844041,5.56800176,32353.0,32344.0,0.24057544]
[1625732844191,5.56800176,32353.0,32345.0,0.00911173]
[1625732844345,5.56800176,32353.0,32352.0,0.01275393]
[1625732844493,5.93029215,32353.0,32352.0,0.01275393]
[1625732844643,5.93029215,32353.0,32346.0,0.01275443]
[1625732844796,6.43029215,32353.0,32352.0,0.00364444]
[1625732844945,7.33584911,32353.0,32352.0,0.00364444]
[1625732845095,6.83584911,32353.0,32343.0,0.01275595]
[1625732845246,7.92251584,32353.0,32343.0,0.01275595]
[1625732845396,0.90576653,32351.0,32343.0,0.01275595]
[1625732845696,0.90576653,32351.0,32344.0,0.46581]
[1625732845996,0.48115088,32345.0,32344.0,0.46581]
[1625732846149,0.71600088,32345.0,32344.0,0.46581]
[1625732846296,0.2376,32345.0,32344.0,0.46581]
[1625732846449,0.2376,32345.0,32344.0,0.46945482]
[1625732846597,0.2376,32345.0,32344.0,0.01275817]
[1625732846749,0.2376,32345.0,32344.0,0.47821417]
[1625732847649,0.90560873,32353.0,32344.0,0.57821417]
[1625732847800,0.72437842,32354.0,32345.0,0.00911286]
[1625732847801,0.90557547,32354.0,32345.0,0.00911286]
[1625732847953,0.90557547,32354.0,32353.0,0.48115088]
[1625732848249,0.3622664,32354.0,32353.0,0.48115088]
[1625732848400,0.3622664,32354.0,32353.0,0.58479553]
[1625732848551,0.90569973,32354.0,32353.0,0.58479553]
[1625732849152,0.36230915,32356.0,32353.0,0.58479553]
[1625732849310,0.54337319,32357.0,32353.0,1.04606653]
[1625732849455,0.90563173,32358.0,32353.0,1.04606653]
[1625732849601,0.90560155,32359.0,32353.0,0.94606653]
[1625732849751,0.90560155,32359.0,32354.0,0.00364404]
[1625732849900,0.36227683,32359.0,32358.0,0.1]
[1625732850050,0.36227683,32359.0,32358.0,0.58115088]
[1625732850201,0.36227683,32359.0,32358.0,0.58668886]
[1625732850353,7.683e-05,32359.0,32358.0,0.58668886]
[1625732850503,0.54331682,32360.0,32358.0,0.58668886]
[1625732850802,1.26751629,32363.0,32359.0,0.00364364]
[1625732850803,0.54316113,32363.0,32359.0,0.00364364]
[1625732851028,1.26731723,32363.0,32359.0,0.00364364]
[1625732851253,1.26735841,32362.0,32360.0,0.462537]
[1625732851403,0.54317946,32362.0,32360.0,0.462537]
[1625732851552,0.84381946,32362.0,32361.0,0.00364374]
[1625732851703,0.30064,32362.0,32361.0,0.00364374]
[1625732851868,5.63784,32362.0,32361.0,0.10364374]
[1625732852008,9.74008891,32362.0,32361.0,0.10364374]
[1625732852154,10.74008891,32362.0,32361.0,0.10364374]
[1625732852304,10.74008891,32362.0,32361.0,0.00364374]
[1625732852530,12.18804506,32362.0,32361.0,0.00364374]
[1625732852907,12.18804506,32362.0,32359.0,0.00364424]
[1625732853058,12.18804506,32362.0,32361.0,0.1]
[1625732853361,12.18804506,32362.0,32361.0,0.10364432]
[1625732854409,12.18804506,32362.0,32361.0,0.1]
[1625732854711,11.68804506,32362.0,32361.0,0.1]
[1625732855011,12.68804506,32362.0,32361.0,0.10364441]
[1625732855161,12.18804506,32362.0,32361.0,0.10364441]
[1625732855610,12.18804506,32362.0,32361.0,0.1]
[1625732855761,12.18804506,32362.0,32361.0,0.10364442]
[1625732856060,10.74008891,32362.0,32361.0,0.10364442]
[1625732856812,9.74008891,32362.0,32361.0,0.10364442]
[1625732857116,9.74008891,32362.0,32361.0,0.112755]
[1625732857263,9.25893803,32362.0,32361.0,0.112755]
[1625732857562,7.99162613,32362.0,32361.0,0.112755]
[1625732858013,8.99162613,32362.0,32361.0,0.112755]
[1625732858162,9.23220157,32362.0,32361.0,0.35333044]
[1625732858314,8.23220157,32362.0,32361.0,0.35333044]
[1625732859743,7.14590836,32362.0,32361.0,0.35333044]
[1625732860342,7.14590836,32362.0,32361.0,0.34057544]
[1625732860644,7.14590836,32362.0,32361.0,0.3537579]
[1625732861620,1.80870836,32362.0,32361.0,0.3537579]
[1625732861922,0.54121544,32362.0,32361.0,0.3537579]
[1625732862225,1.80739505,32362.0,32361.0,0.3537579]
[1625732862675,1.56681961,32362.0,32361.0,0.3537579]
[1625732862828,0.84331424,32362.0,32361.0,0.3537579]
[1625732865979,1.02430295,32362.0,32361.0,0.3537579]
[1625732866432,0.48162871,32362.0,32361.0,0.3537579]
[1625732866579,0.84323853,32362.0,32361.0,0.3537579]
[1625732866730,0.30064,32362.0,32361.0,0.3537579]
[1625732866881,0.18098691,32362.0,32361.0,0.3537579]
[1625732867105,0.5425989,32362.0,32361.0,0.3537579]
[1625732867405,0.18098682,32362.0,32361.0,0.3537579]
[1625732868083,0.72362762,32362.0,32361.0,0.3537579]
[1625732868231,0.7873308,32362.0,32361.0,0.3537579]
[1625732868539,0.42568286,32362.0,32361.0,0.3537579]
[1625732871233,0.18099286,32362.0,32361.0,0.3537579]
[1625732871382,0.18099286,32362.0,32361.0,0.6077179]
[1625732871685,0.18105384,32363.0,32361.0,1.0742609]
[1625732871834,1.26622877,32364.0,32361.0,1.0742609]
[1625732871835,0.18104017,32364.0,32361.0,1.0924782]
[1625732872132,0.18103887,32365.0,32363.0,5.0149]
[1625732872283,0.54286586,32365.0,32364.0,0.48115088]
[1625732872432,0.54286586,32365.0,32364.0,0.94014588]
[1625732872583,0.18109486,32365.0,32364.0,0.94014588]
[1625732872735,0.18109486,32365.0,32364.0,0.9715366]
[1625732872883,0.18109486,32365.0,32364.0,1.0715366]
[1625732873033,0.54292342,32365.0,32364.0,1.0715366]
[1625732873483,0.18109526,32365.0,32364.0,1.0715366]
[1625732874309,0.54314837,32365.0,32364.0,1.0715366]
[1625732875289,0.72431615,32365.0,32364.0,1.0715366]
[1625732875606,0.54314837,32365.0,32364.0,1.0715366]
[1625732875905,0.18116505,32365.0,32364.0,1.0715366]
[1625732876043,0.18115924,32366.0,32364.0,1.0715366]
[1625732876571,0.18115924,32366.0,32365.0,0.03138895]
[1625732877010,0.18115924,32366.0,32365.0,0.59388495]
[1625732877161,0.1812323,32367.0,32365.0,0.59388495]
[1625732877466,0.54333479,32368.0,32365.0,0.59388495]
[1625732877467,0.18123106,32368.0,32365.0,0.59388495]
[1625732877610,0.18123106,32368.0,32366.0,0.03138709]
[1625732877933,0.18123106,32368.0,32367.0,0.463893]
[1625732878063,0.18123106,32368.0,32367.0,0.563893]
[1625732878212,0.18123106,32368.0,32367.0,0.57706574]
[1625732878365,0.18123106,32368.0,32367.0,0.81764118]
[1625732878511,0.18123106,32368.0,32367.0,0.83585523]
[1625732880775,1.26795492,32368.0,32367.0,0.83585523]
[1625732881153,2.35467471,32368.0,32367.0,0.83585523]
[1625732881595,2.35467471,32368.0,32367.0,0.37196223]
[1625732881797,5.07160168,32368.0,32367.0,0.13138679]
[1625732881951,6.07160168,32368.0,32367.0,0.01317274]
[1625732882054,5.07160168,32368.0,32367.0,0.01317274]
[1625732882195,5.07160168,32368.0,32365.0,0.01821694]
[1625732882196,6.07160168,32368.0,32365.0,0.01317652]
[1625732882344,5.07291996,32366.0,32365.0,0.01317652]
[1625732882497,5.79464628,32366.0,32365.0,0.01317652]
[1625732882644,6.79464628,32366.0,32365.0,0.01317652]
[1625732884144,5.79464628,32366.0,32365.0,0.01317652]
[1625732884295,6.79464628,32366.0,32365.0,0.01317652]
[1625732884446,8.42575189,32366.0,32365.0,0.01317652]
[1625732886624,8.92575189,32366.0,32365.0,0.01317652]
[1625732886925,8.42575189,32366.0,32365.0,0.01317652]
[1625732887225,8.92575189,32366.0,32365.0,0.01317652]
[1625732888953,8.92575189,32366.0,32359.0,0.24057544]
[1625732889119,7.92575189,32366.0,32359.0,0.24057544]
[1625732889272,7.92575189,32366.0,32360.0,0.0131634]
[1625732889477,1.63161987,32362.0,32360.0,0.0131634]
[1625732889556,6.70829236,32361.0,32357.0,0.01316378]
[1625732889725,7.03124236,32361.0,32357.0,0.01316378]
[1625732889870,5.07674979,32358.0,32353.0,0.01316365]
[1625732890156,5.07674979,32358.0,32352.0,0.24057544]
[1625732890306,3.62655481,32354.0,32352.0,0.24057544]
[1625732890454,2.8380445,32353.0,32352.0,0.24057544]
[1625732891054,2.8380445,32353.0,32352.0,0.35374001]
[1625732893459,4.10700722,32353.0,32352.0,0.35374001]
[1625732893605,5.10700722,32353.0,32352.0,0.35374001]
[1625732893756,6.55724335,32353.0,32352.0,0.11316457]
[1625732893906,6.55724335,32353.0,32342.0,0.11727563]
[1625732893907,7.05724335,32353.0,32342.0,0.11727563]
[1625732894231,0.27231827,32343.0,32342.0,0.11727563]
[1625732894383,0.50827827,32343.0,32342.0,0.11727563]
[1625732894512,3.226312,32343.0,32342.0,0.23041067]
[1625732894665,8.49143825,32343.0,32342.0,0.23041067]
[1625732894987,8.99143825,32343.0,32342.0,0.11313504]
[1625732895141,10.26003043,32343.0,32342.0,0.01313504]
[1625732895290,5.58223043,32343.0,32342.0,0.01313504]
[1625732895414,6.03217432,32343.0,32342.0,0.01313504]
[1625732895575,4.58223043,32343.0,32342.0,0.01313504]
[1625732895707,5.58223043,32343.0,32342.0,0.1]
[1625732896008,5.58223043,32343.0,32342.0,0.11313733]
[1625732896159,4.58223043,32343.0,32342.0,0.11313733]
[1625732896308,3.31363825,32343.0,32342.0,0.11313733]
[1625732896761,2.226312,32343.0,32342.0,0.11313733]
[1625732896910,3.226312,32343.0,32342.0,0.11313733]
[1625732897210,2.226312,32343.0,32342.0,0.11313733]
[1625732897961,3.313058,32343.0,32342.0,0.11313733]
[1625732898641,4.313058,32343.0,32342.0,0.11313733]
[1625732900140,3.313058,32343.0,32342.0,0.11313733]
[1625732900441,4.313058,32343.0,32342.0,0.11313733]
[1625732900591,4.288058,32343.0,32342.0,0.11313733]
[1625732901344,4.288058,32343.0,32342.0,0.01313733]
[1625732901492,5.55517404,32343.0,32342.0,0.00402142]
[1625732901943,4.288058,32343.0,32342.0,0.1]
[1625732902094,3.288058,32343.0,32342.0,0.1]
[1625732902244,3.288058,32343.0,32342.0,0.11315684]
[1625732902544,3.288058,32343.0,32342.0,0.10404067]
[1625732902845,4.288058,32343.0,32342.0,0.10404067]
[1625732903146,4.288058,32343.0,32342.0,0.00404067]
[1625732903595,4.288058,32343.0,32337.0,0.01315685]
[1625732903898,0.2717568,32340.0,32337.0,0.01315685]
[1625732904196,0.2717568,32340.0,32339.0,0.1]
[1625732904347,0.27162891,32341.0,32339.0,0.1]
[1625732904495,0.27162891,32341.0,32339.0,0.11315665]
[1625732904646,0.33117869,32341.0,32339.0,0.11315665]
[1625732904796,0.33117869,32341.0,32340.0,0.01315654]
[1625732905098,0.33117869,32341.0,32336.0,0.24057544]
[1625732905248,0.33117869,32341.0,32340.0,0.0131594]
[1625732905398,0.33117869,32341.0,32340.0,0.1131594]
[1625732905548,0.24057544,32341.0,32340.0,0.12631865]
[1625732906150,0.78291596,32341.0,32340.0,0.12631865]
[1625732906302,1.78291596,32341.0,32340.0,0.02631865]
[1625732906448,0.24057544,32341.0,32340.0,0.02631865]
[1625732906598,0.24057544,32341.0,32340.0,0.12631865]
[1625732906749,0.33111266,32341.0,32340.0,0.12631865]
[1625732907049,1.33111266,32341.0,32340.0,0.12631865]
[1625732907199,1.33111266,32341.0,32340.0,0.02631865]
[1625732907349,1.51197074,32341.0,32340.0,0.02631865]
[1625732907649,1.42143352,32341.0,32340.0,0.12631865]
[1625732907802,1.51199618,32341.0,32340.0,0.12631865]
[1625732907979,2.50636412,32341.0,32340.0,0.12631865]
[1625732908100,2.50636412,32341.0,32340.0,0.02631865]
[1625732908249,3.59109926,32341.0,32340.0,0.02631865]
[1625732908399,4.09109926,32341.0,32340.0,0.02631865]
[1625732908551,3.59109926,32341.0,32340.0,0.02631865]
[1625732908701,2.50636412,32341.0,32340.0,0.02631865]
[1625732909155,3.58999848,32341.0,32340.0,1.865e-05]
[1625732909302,3.58999848,32341.0,32340.0,0.0131616]
[1625732909452,5.35360524,32341.0,32340.0,0.0131616]
[1625732909600,5.35360524,32341.0,32331.0,0.01313444]
[1625732909751,5.64504524,32341.0,32331.0,0.01313444]
[1625732909902,2.7956222,32341.0,32340.0,0.01313451]
[1625732910051,5.14253505,32341.0,32340.0,0.01313451]
[1625732910203,1.0,32333.0,32332.0,0.01313443]
[1625732910353,1.28717,32333.0,32330.0,0.463804]
[1625732910505,1.28717,32333.0,32327.0,0.01823315]
[1625732910653,0.72172632,32330.0,32326.0,0.24057544]
[1625732910954,1.72172632,32330.0,32329.0,0.70565244]
[1625732911106,1.72172632,32330.0,32329.0,0.80565244]
[1625732911407,0.72172632,32330.0,32329.0,0.80565244]
[1625732911555,0.72172632,32330.0,32329.0,0.8370231]
[1625732912156,1.72172632,32330.0,32329.0,0.8370231]
[1625732912530,0.72172632,32330.0,32329.0,0.8370231]
[1625732912832,1.72172632,32330.0,32329.0,0.8370231]
[1625732913432,0.72172632,32330.0,32329.0,0.8370231]
[1625732914330,1.72172632,32330.0,32329.0,0.8370231]
[1625732914780,0.72172632,32330.0,32329.0,0.8370231]
[1625732915382,1.72172632,32330.0,32329.0,0.8370231]
[1625732916810,0.72172632,32330.0,32329.0,0.8370231]
[1625732918609,0.72172632,32330.0,32329.0,0.3719461]
[1625732918760,0.72172632,32330.0,32329.0,0.13137066]
[1625732919212,1.72172632,32330.0,32329.0,0.11313504]
[1625732919435,0.72172632,32330.0,32329.0,0.11313504]
[1625732919586,0.72172632,32330.0,32329.0,0.57541304]
[1625732919885,0.48115088,32330.0,32329.0,0.59364823]
[1625732920034,0.27055208,32337.0,32329.0,0.59364823]
[1625732920035,0.18030801,32337.0,32329.0,0.59364823]
[1625732920188,1.35147096,32338.0,32329.0,0.59364823]
[1625732920189,0.27067356,32338.0,32329.0,0.59364823]
[1625732920336,0.54080649,32339.0,32329.0,0.59364823]
[1625732920337,0.27061687,32339.0,32329.0,0.59364823]
[1625732920485,1.09026124,32340.0,32330.0,0.0313678]
[1625732920634,1.33083668,32340.0,32335.0,0.24057544]
[1625732920936,1.51118391,32340.0,32335.0,0.24057544]
[1625732921085,1.51118391,32340.0,32339.0,0.1]
[1625732921237,0.42092267,32340.0,32339.0,0.1]
[1625732921538,1.42092267,32340.0,32339.0,0.11313384]
[1625732921687,1.51118677,32340.0,32339.0,0.11313384]
[1625732921840,0.51118677,32340.0,32339.0,0.11313384]
[1625732922137,0.33083954,32340.0,32339.0,0.11313384]
[1625732922287,1.33083954,32340.0,32339.0,0.11313384]
[1625732922588,1.24057544,32340.0,32339.0,0.11313384]
[1625732922889,1.51116425,32340.0,32339.0,0.11313384]
[1625732923039,1.33083176,32340.0,32339.0,0.11313384]
[1625732923191,0.33083176,32340.0,32339.0,0.11313384]
[1625732923339,0.51112586,32340.0,32339.0,0.11313384]
[1625732923490,1.51112586,32340.0,32339.0,0.11313384]
[1625732924917,0.33083176,32340.0,32339.0,0.11313384]
[1625732925217,0.24057544,32340.0,32339.0,0.11313384]
[1625732925442,0.24057544,32340.0,32339.0,0.1]
[1625732925742,1.24057544,32340.0,32339.0,0.1]
[1625732926043,0.27043208,32341.0,32339.0,0.43865]
[1625732926193,0.18025127,32343.0,32339.0,0.43865]
[1625732926342,0.18025127,32343.0,32340.0,0.01310702]
[1625732926493,0.18027811,32345.0,32340.0,0.01310702]
[1625732926644,0.18028692,32349.0,32344.0,0.48115088]
[1625732926792,0.18028692,32349.0,32344.0,5.99115088]
[1625732926945,0.42086191,32350.0,32345.0,0.47979778]
[1625732927094,0.42086191,32350.0,32348.0,0.1]
[1625732927244,0.42086191,32350.0,32348.0,0.3398]
[1625732927394,0.42086191,32350.0,32349.0,0.461373]
[1625732927545,0.24057544,32350.0,32349.0,0.47447672]
[1625732927694,0.24057544,32350.0,32349.0,0.49270374]
[1625732927996,0.24057544,32350.0,32349.0,0.59270374]
[1625732928672,0.24057544,32350.0,32349.0,0.83327918]
[1625732929798,0.42089524,32350.0,32349.0,0.83327918]
[1625732930624,0.78133204,32350.0,32349.0,0.83327918]
[1625732932505,1.78133204,32350.0,32349.0,0.81505216]
[1625732932806,1.78133204,32350.0,32349.0,0.57447672]
[1625732933706,2.50263289,32350.0,32349.0,0.57447672]
[1625732933856,3.82483977,32350.0,32349.0,0.11310372]
[1625732934156,5.08596113,32350.0,32349.0,0.11310372]
[1625732934306,5.08596113,32350.0,32349.0,0.01310372]
[1625732934607,6.52749274,32350.0,32349.0,0.01310372]
[1625732934759,5.32653657,32350.0,32338.0,0.24057544]
[1625732935059,1.18036873,32345.0,32339.0,0.01310699]
[1625732935206,0.18033161,32344.0,32339.0,0.01310699]
[1625732935507,0.18033161,32344.0,32340.0,0.461687]
[1625732935657,0.18033103,32345.0,32340.0,0.461687]
[1625732935882,0.18033103,32345.0,32343.0,0.1]
[1625732936182,0.18033103,32345.0,32344.0,0.465249]
[1625732936332,0.72117085,32346.0,32344.0,0.465249]
[1625732936484,0.72117085,32346.0,32344.0,0.11310671]
[1625732936634,0.1806008,32347.0,32345.0,0.01310576]
[1625732936784,0.1806694,32348.0,32346.0,0.48115088]
[1625732937234,0.18065564,32351.0,32347.0,0.57455425]
[1625732937389,0.18065564,32351.0,32347.0,0.88541425]
[1625732937533,0.18065564,32351.0,32348.0,0.03133119]
[1625732937835,0.18065564,32351.0,32349.0,0.465042]
[1625732937985,1.26474685,32351.0,32350.0,0.1]
[1625732938285,0.54206017,32351.0,32350.0,0.13133096]
[1625732938435,0.54206017,32351.0,32350.0,0.58965596]
[1625732938736,0.63516017,32351.0,32350.0,0.8302314]
[1625732938886,0.54206017,32351.0,32350.0,0.8302314]
[1625732939036,1.26483919,32351.0,32350.0,0.8302314]
[1625732939185,0.54206017,32351.0,32350.0,0.8302314]
[1625732939336,0.54206017,32351.0,32350.0,0.81200419]
[1625732939486,1.26485285,32351.0,32350.0,0.81200419]
[1625732939938,3.61632673,32351.0,32350.0,0.81200419]
[1625732941212,5.06340311,32351.0,32350.0,0.81200419]
[1625732941361,5.06340311,32351.0,32350.0,0.71200419]
[1625732941810,5.06340311,32351.0,32350.0,0.47142875]
[1625732942410,7.69152379,32351.0,32350.0,0.47142875]
[1625732942710,7.69152379,32351.0,32350.0,0.01310375]
[1625732942861,7.93209923,32351.0,32350.0,0.01310375]
[1625732943162,8.24255923,32351.0,32343.0,0.01310825]
[1625732943462,0.5,32350.0,32343.0,0.01310825]
[1625732943613,5.06969562,32344.0,32343.0,0.01310825]
[1625732943763,5.38674562,32344.0,32343.0,0.01310825]
[1625732944514,5.38674562,32344.0,32340.0,0.01310915]
[1625732944664,3.6237588,32341.0,32340.0,0.01310915]
[1625732944813,4.34548512,32341.0,32334.0,0.01823362]
[1625732944965,5.7948778,32341.0,32340.0,0.1]
[1625732945116,5.34548512,32341.0,32340.0,0.11310953]
[1625732945415,4.34548512,32341.0,32340.0,0.11310953]
[1625732946016,1.99015059,32341.0,32340.0,0.11310953]
[1625732946244,3.07797806,32341.0,32340.0,0.11310953]
[1625732947450,1.99015059,32341.0,32340.0,0.11310953]
[1625732948049,3.07797602,32341.0,32340.0,0.11310953]
[1625732948272,4.34822462,32341.0,32340.0,0.11310953]
[1625732948574,3.07797602,32341.0,32340.0,0.11310953]
[1625732948876,1.99015059,32341.0,32340.0,0.11310953]
[1625732949178,1.99015059,32341.0,32340.0,0.57553153]
[1625732949627,1.50899971,32341.0,32340.0,0.59376212]
[1625732950228,2.59784832,32341.0,32340.0,0.59376212]
[1625732950829,2.59784832,32341.0,32340.0,0.83433756]
[1625732951128,1.27078076,32343.0,32340.0,0.83433756]
[1625732951278,0.18168689,32341.0,32340.0,1.07191756]
[1625732952628,0.18168689,32341.0,32340.0,0.83433756]
[1625732952778,1.27125278,32344.0,32340.0,0.83433756]
[1625732952937,1.27123409,32345.0,32340.0,0.83433756]
[1625732953229,1.27123409,32345.0,32341.0,0.03133625]